Cogmind - Beta 15 @@@ ROGUE MODE // 2025.09.20 @ 22:47:16 Player: leek.801 Result: Destroyed by X-57 Shotgunner with High-powered Shotgun Performance ------------- Evolutions (2) 1000 Regions Visited (3) 600 Robots Destroyed (65) 325 Value Destroyed (1794) 1794 Prototype IDs (1) 20 Alien Tech Used (0) 0 Bonus (60) 60 TOTAL SCORE: 3799 Bonus ------- High Alert Combat Kills 60 Cogmind --------- Core Integrity 0/550 Matter 278/300 Energy 99/100 System Corruption 0% Temperature Cool (0) Movement Core (50) Location -8/Materials Parts ------- > --- POWER (1) -------- (None) > --- PROPULSION (3) --- (None) > --- UTILITY (5) ------ (None) > --- WEAPON (2) ------- (None) > --- INVENTORY (5) ---- Improved Ion Engine Light Nuclear Core High-capacity Matter Pod (200) Improved Signal Interpreter Advanced Targeting Computer Peak State ------------ > --- POWER ------------ Light Nuclear Core > --- PROPULSION ------- Light Treads Light Treads Armored Wheel > --- UTILITY ---------- Heat Sink Large Storage Unit Improved Sensor Array Improved Signal Interpreter Improved Light Armor Plating > --- WEAPON ----------- Plasma Cannon Heavy Assault Rifle > --- INVENTORY -------- Improved Ion Engine Light Nuclear Core High-capacity Matter Pod Improved Signal Interpreter Improved Signal Interpreter Advanced Targeting Computer Improved Propulsion Shielding [Rating: 25] Favorites ----------- Power Ion Engine Engine Ion Engine Power Core Light Nuclear Core Propulsion Wheel Treads Light Treads Wheel Wheel Utility Improved Signal Interpreter Device Improved Sensor Array Storage Large Storage Unit Processor Improved Signal Interpreter Protection Improved Light Armor Plating Weapon Spread Laser Energy Gun Spread Laser Energy Cannon Plasma Cannon Ballistic Gun Heavy Assault Rifle Launcher EMP Blaster Build | -11 -10 -9 -8 ------- Run | Yrd Mat Mat Mat Slots Evolved 4 | . . 2 2 Power . | . . . . Propulsion 1 | . . 1 . Utility 3 | . . 1 2 Weapon . | . . . . Parts Attached 56 | 6 8 27 15 Power 9 | 1 1 5 2 Engine 7 | 1 . 5 1 Core 2 | . 1 . 1 Reactor . | . . . . Propulsion 15 | 2 2 8 3 Treads 2 | . . . 2 Leg . | . . . . Wheel 13 | 2 2 8 1 Hover . | . . . . Flight . | . . . . Utility 17 | 1 3 7 6 Device 6 | . 2 2 2 Storage 5 | 1 1 3 . Processor 2 | . . 2 . Hackware . | . . . . Protection 4 | . . . 4 Artifact . | . . . . Weapon 15 | 2 2 7 4 Energy Gun 9 | 1 2 5 1 Energy Cannon 1 | . . . 1 Ballistic Gun 4 | 1 . 1 2 Ballistic Cannon . | . . . . Launcher 1 | . . 1 . Special Weapon . | . . . . Impact Weapon . | . . . . Slashing Weapon . | . . . . Piercing Weapon . | . . . . Special Melee Weapon . | . . . . Unidentified Prototypes 1 | . . 1 . Parts Lost 26 | . 3 7 16 Power 3 | . 1 . 2 Propulsion 8 | . . 2 6 Utility 6 | . 2 . 4 Weapon 9 | . . 5 4 Highest Loss Streak 9 | . 1 3 9 To Critical Strikes . | . . . . Average Backups 10 | 1 8 12 7 Power 1 | . 1 1 1 Propulsion 2 | . 4 2 . Utility 5 | . . 6 5 Weapon 1 | . 1 1 . Tool/Special . | . . . . Unused Backups 7 | . . 2 5 Power 3 | . . 1 2 Propulsion . | . . . . Utility 4 | . . 1 3 Weapon . | . . . . Tool/Special . | . . . . Average Slot Usage (%) 89 | . 85 95 76 Engine 7 | . 4 9 3 Core 1 | . 7 . 3 Treads 3 | . . . 12 Wheel 24 | . 24 32 5 Device 10 | . 8 10 9 Storage 10 | . 14 11 8 Processor 8 | . . 10 8 Protection 2 | . . . 10 Energy Gun 15 | . 13 19 8 Ballistic Gun 3 | . 12 1 6 Peak Build Rating 25 | 6 10 21 25 Average Rating 15 | 4 7 17 16 On Entrance 6 | . 6 5 16 Naked Turns 78 | . . . 78 Heaviest Build 94 | 14 90 94 45 Greatest Support 44 | 20 20 44 40 Greatest Overweight (x) 26 | 3 26 5 6 Average Overweight (x) 1 | . 3 1 . Largest Inventory Capacity 25 | 8 25 25 15 Average Capacity 18 | 7 24 19 14 Most Carried 18 | 4 12 18 9 Average Carried 11 | 1 8 13 7 Final Capacity 25 | 8 25 15 5 Final Carried 11 | 4 8 11 5 Class Distribution -------------------- 85% | Mutant 14% | Scavenger-Mutant Dominant Class ---------------- Mutant | -10/Materials Mutant | -9/Materials Scavenger-Mutant | -8/Materials Resources | -11 -10 -9 -8 ----------- Run | Yrd Mat Mat Mat Matter Collected 1214 | 260 187 631 136 Remotely 52 | . 52 . . Salvage Created 2279 | . 205 1711 363 Parts 143 | . 8 104 31 Haulers Intercepted 1 | . . 1 . Recyclers Shooed 3 | . . 2 1 Parts Field Recycled . | . . . . Retrieved Matter . | . . . . Parts Self-Destructed . | . . . . Prevented . | . . . . Kills | -11 -10 -9 -8 ------- Run | Yrd Mat Mat Mat Combat Hostiles Destroyed 55 | . 4 41 10 Guns 47 | . 3 35 9 AOE 8 | . 1 6 1 Classes Destroyed 10 | . 2 8 . Worker 4 | . 1 2 1 Builder 1 | . . 1 . Tunneler 1 | . . 1 . Hauler 1 | . . 1 . Recycler 1 | . . 1 . Watcher 2 | . . 1 1 Swarmer 16 | . . 11 5 Grunt 26 | . 4 20 2 Brawler 1 | . . 1 . Sentry 12 | . . 9 3 Best Kill Streak 6 | . 2 6 4 Combat Bots Only 5 | . 2 5 4 Max Kills in Single Turn 2 | . 1 2 2 Gunslinging . | . . . . Exploded 2 | . 1 2 1 Melee . | . . . . Uniques/NPCs Destroyed . | . . . . Combat | -11 -10 -9 -8 -------- Run | Yrd Mat Mat Mat Hostile Shots Fired 414 | . 48 124 242 Missed 148 | . 14 37 97 Hits 266 | . 34 87 145 Projectile 266 | . 34 87 145 Critical Strikes 10 | . . 3 7 Damage Taken 3477 | . 436 1067 1974 Core 768 | . 90 122 556 Absorbed by Shields . | . . . . Redirected to Shielding 24 | . . . 24 Core Remaining (%) 77 | 100 64 69 . Volleys Fired 170 | . 29 90 51 Largest 2 | . 2 2 2 Hottest 121 | . 90 121 105 Shots Fired 319 | . 57 169 93 Gun 307 | . 57 161 89 Cannon 4 | . . . 4 Launcher 8 | . . 8 . Special . | . . . . Kinetic 76 | . 24 15 37 Thermal 190 | . 28 106 56 Explosive . | . . . . Electromagnetic 53 | . 5 48 . Robot Hit Streak 14 | . 14 13 13 Robot Miss Streak 6 | . 3 6 4 Penetration Max . | . . . . Secondary Targets 3 | . . 3 . Max Gunslinging Chain 1 | . . 1 . Shots Hit Robots 233 | . 41 126 66 Core Hits 155 | . 11 117 27 Critical Kills . | . . . . Critical Parts Destroyed 1 | . 1 . . Critical Strikes 8 | . 2 6 . Burn 7 | . 1 6 . Destroy 1 | . 1 . . Melee Attacks . | . . . . Impact . | . . . . Slashing . | . . . . Piercing . | . . . . Sneak Attacks . | . . . . Combat Hostiles . | . . . . Follow-up Attacks . | . . . . Damage Inflicted 3444 | . 522 1982 940 Guns 2849 | . 492 1555 802 Cannons 79 | . . . 79 Explosions 445 | . 30 372 43 Melee . | . . . . Ramming 71 | . . 55 16 Kinetic 621 | . 187 85 349 Thermal 1979 | . 297 1150 532 Explosive . | . . . . Electromagnetic 773 | . 38 692 43 Impact . | . . . . Slashing . | . . . . Piercing . | . . . . Highest Corruption 2 | . . 2 . Average Corruption 2 | . . 2 . Corruption Purged . | . . . . Corruption Blocked . | . . . . Effects 11 | . . 11 . Message Errors 3 | . . 3 . Matter Fused 3 | . . 3 . Heat Flow Errors 2 | . . 2 . Parts Rejected 1 | . . 1 . Data Loss (minor) 1 | . . 1 . Weapon Failures 1 | . . 1 . Overload Shots . | . . . . Overflow Damage . | . . . . Projectiles . | . . . . Explosions . | . . . . Melee . | . . . . Knockbacks . | . . . . Impact . | . . . . Kinetic . | . . . . Secondary . | . . . . Self-Inflicted Damage 177 | . 39 104 34 Shots 6 | . 1 3 2 Rammed 11 | . . 9 2 Targets Rammed 11 | . . 9 2 Kicked . | . . . . Crushed . | . . . . Highest Temperature 306 | . 171 306 250 Average Temperature 92 | . 71 90 111 Received Heat Transfer 1050 | . 216 402 432 Effects 2 | . . . 2 Interference 2 | . . . 2 Siege Activations . | . . . . Martial Activations . | . . . . Shielding Activations . | . . . . Robots Disrupted . | . . . . Combat Hostiles . | . . . . Robots Corrupted . | . . . . Combat Hostiles . | . . . . Parts Fried 2 | . 1 1 . Impact Corruptions . | . . . . Robots Melted . | . . . . Combat Hostiles . | . . . . Parts Melted 7 | . 1 4 2 Heat Transferred 4628 | . 890 2571 1167 Parts Sabotaged . | . . . . Parts Stolen . | . . . . Parts Stripped . | . . . . Power Chain Reactions 6 | . 1 4 1 Alert | -11 -10 -9 -8 ------- Run | Yrd Mat Mat Mat Maximum Alert Level 2 | . . 2 1 Low Security (%) 65 | 100 100 50 82 Level 1 20 | . . 27 17 Level 2 13 | . . 22 . Level 3 . | . . . . Level 4 . | . . . . Level 5 . | . . . . High Security . | . . . . Max Security . | . . . . Peak Influence 506 | . 75 506 253 Initial 198 | . . 10 198 Average 182 | . 20 229 162 Influence Increases 1763 | . 155 1207 401 Destroy 0b10 Robot/C 1100 | . 80 820 200 Destroy 0b10 Robot/NC 50 | . 5 35 10 Destroy Leader 276 | . 20 204 52 Successful Hack 23 | . . 23 . Disable Machine 105 | . 30 30 45 Destroy Structure 29 | . 5 20 4 Partial Spotted 15 | . . 15 . Lose Combat Pursuer 165 | . 15 60 90 Influence Decreases 1674 | . 130 760 784 Entered New Map 289 | . . 15 274 Time Decay 975 | . 100 525 350 Lost Part 260 | . 30 70 160 Purge Threat 150 | . . 150 . Squads Dispatched 11 | . 1 7 3 Investigation 5 | . . 4 1 Extermination . | . . . . Reinforcement 6 | . 1 3 2 Assault . | . . . . Garrison . | . . . . Intercept . | . . . . Searches Triggered . | . . . . Construction Impeded 1 | . . . 1 Haulers Reinforced . | . . . . Active Scanning Responses . | . . . . Cargo Convoy Interrupts . | . . . . Stealth | -11 -10 -9 -8 --------- Run | Yrd Mat Mat Mat Distress Signals 7 | . 1 3 3 Communications Jammed . | . . . . Distress Signals . | . . . . Times Spotted 97 | . 12 57 28 Peak Tracking Total 8 | . 4 7 8 Tactical Retreats 9 | . 1 3 5 Traps | -11 -10 -9 -8 ------- Run | Yrd Mat Mat Mat Traps Triggered 6 | . 2 4 . Indirectly . | . . . . Trap Hack Attempts . | . . . . Triggered . | . . . . Disarmed . | . . . . Reprogrammed . | . . . . Reused . | . . . . Traps Extracted . | . . . . Installed . | . . . . Triggered . | . . . . Objects Rigged 2 | . . . 2 Exploded 1 | . . . 1 Machines | -11 -10 -9 -8 ---------- Run | Yrd Mat Mat Mat Machines Disabled 7 | . 2 2 3 Max in Single Turn 3 | . 2 1 3 Machines Repaired . | . . . . Machines Dismantled . | . . . . Machines Sabotaged . | . . . . Overloaded Fab Kills . | . . . . Hacking | -11 -10 -9 -8 --------- Run | Yrd Mat Mat Mat Machines Accessed 9 | . . 7 2 Terminals 8 | . . 6 2 Fabricators . | . . . . Repair Stations . | . . . . Recycling Units 1 | . . 1 . Scanalyzers . | . . . . Garrison Access . | . . . . Total Hacks 30 | . . 24 6 Successful 17 | . . 16 1 Failed 13 | . . 8 5 Catastrophic 3 | . . 1 2 Database Lockouts . | . . . . Manual 23 | . . 17 6 Terminals 29 | . . 23 6 Fabricators . | . . . . Repair Stations . | . . . . Recycling Units 1 | . . 1 . Scanalyzers . | . . . . Garrison Access . | . . . . Terminal Hacks 7 | . . 7 . Level Access Points 1 | . . 1 . Emergency Access Points 1 | . . 1 . Terminal Index 1 | . . 1 . Alert Level 3 | . . 3 . Unreport Threat 1 | . . 1 . Fabricator Hacks . | . . . . Repair Station Hacks . | . . . . Recycling Unit Hacks 1 | . . 1 . Report Inventory 1 | . . 1 . Scanalyzer . | . . . . Garrison Access Hacks . | . . . . Unauthorized Hacks 9 | . . 8 1 Terminals 9 | . . 8 1 Assimilate 1 | . . 1 . Botnet 2 | . . 2 . Detonate 1 | . . . 1 Skim 5 | . . 5 . Fabricators . | . . . . Repair Stations . | . . . . Recycling Units . | . . . . Scanalyzers . | . . . . Garrison Access . | . . . . Data Cores Recovered . | . . . . Used . | . . . . Hacking Detections 7 | . . 5 2 Full Trace Events 3 | . . 2 1 Feedback Events . | . . . . Feedback Blocked . | . . . . Robot Schematics Acquired . | . . . . Robots Built . | . . . . Authchips . | . . . . Time . | . . . . Total Robot Build Rating . | . . . . Part Schematics Acquired . | . . . . Parts Built . | . . . . Authchips . | . . . . Time . | . . . . Total Part Build Rating . | . . . . Parts Repaired . | . . . . Time . | . . . . Parts Recycled . | . . . . Recycled Matter . | . . . . Retrieved Matter . | . . . . Retrieved Components . | . . . . Parts Scanalyzed . | . . . . Part Schematics Acquired . | . . . . Parts Damaged . | . . . . Bothacking | -11 -10 -9 -8 ------------ Run | Yrd Mat Mat Mat Used RIF Installer . | . . . . Robots Hacked . | . . . . Non-combat . | . . . . Combat . | . . . . Robot Hacks Applied . | . . . . Relay Couplers Released . | . . . . Fabnet Peak Effective % . | . . . . Robots Rewired . | . . . . Allies Hacked . | . . . . Hacks Repelled . | . . . . Allies | -11 -10 -9 -8 -------- Run | Yrd Mat Mat Mat Total Allies . | . . . . Largest Group . | . . . . Highest-Rated Group . | . . . . Highest-Rated Ally . | . . . . Total Orders . | . . . . Ally Attacks . | . . . . Total Damage . | . . . . Kills . | . . . . Allies Corrupted . | . . . . Allies Melted . | . . . . Intel | -11 -10 -9 -8 ------- Run | Yrd Mat Mat Mat Active Infowar (turns) 2117 | . . 1851 266 Sensors 2117 | . . 1851 266 Robot Analysis Total . | . . . . Derelict Logs Recovered . | . . . . Drone Launches . | . . . . Drone Recoveries . | . . . . Exploration | -11 -10 -9 -8 ------------- Run | Yrd Mat Mat Mat Turns Passed 3101 | 59 379 1880 783 Spaces Moved 1672 | 53 160 1076 383 Core 162 | 8 2 . 152 Treads 174 | . . . 174 Legs . | . . . . Wheels 1336 | 45 158 1076 57 Hover . | . . . . Flight . | . . . . Fastest Speed 50 | 50 80 80 50 Average Speed 107 | 86 146 102 108 Slowest Speed 1350 | 200 1350 175 350 Overloaded Moves . | . . . . Propulsion Burnouts . | . . . . Robots Hopped . | . . . . Potential Cave-ins . | . . . . Cave-ins Triggered . | . . . . Exploration Rate (%) 32 | 3 25 63 39 Regions Visited 3 Branch Regions . Pre-discovered Areas . | . . . . Known Exits Taken 1 | . . 1 . Unknown Exits Taken 2 | 1 1 . . Scrap Searched . | . . . . Spaces Dug . | . . . . Terrain Destroyed 25 | . 4 18 3 Melee . | . . . . Projectile 1 | . . . 1 AOE 24 | . 4 18 2 Terrain Rammed . | . . . . Walls Destroyed . | . . . . Machines Disabled . | . . . . Actions | -11 -10 -9 -8 --------- Run | Yrd Mat Mat Mat Total 2649 | 62 246 1684 657 Wait 668 | . 41 426 201 Move 1669 | 52 159 1075 383 Hop . | . . . . Pick Up 37 | 4 7 24 2 Fast Attach 25 | 6 3 8 8 Attach 26 | . 4 16 6 Detach 2 | . . 2 . Swap 21 | . 2 18 1 Drop 20 | . 1 16 3 Fire 170 | . 29 90 51 Melee . | . . . . Ram 11 | . . 9 2 Kick . | . . . . Crush . | . . . . Escape Stasis . | . . . . Rewire . | . . . . Trap . | . . . . Miscellaneous . | . . . . Route ------- -11/Scrapyard -10/Materials -9/Materials (discovered 6 exits: *Mat x3 / *Min x2 / *Sto) -8/Materials History --------- Turn | Location | Event 23 | -11/Scrapyard | Discovered new exit (range 16) 60 | -11/Scrapyard | Entered Materials 303 | -10/Materials | Build established: Mutant 388 | -10/Materials | Discovered new exit (range 4) 439 | -10/Materials | Entered another Materials area 439 | -9/Materials | Evolved 2 slots: Propulsion x1, Utility x1 1141 | -9/Materials | Discovered new exit (range 15) 1162 | -9/Materials | Identified exit to Materials 1755 | -9/Materials | Discovered new exit (range 14) 1755 | -9/Materials | Discovered new exit (range 3) 1756 | -9/Materials | Identified exit to Storage 1801 | -9/Materials | Identified exit to Mines 2072 | -9/Materials | Lost 3 parts (1n2w) 2319 | -9/Materials | Entered another Materials area 2319 | -8/Materials | Evolved 2 slots: Utility x2 2487 | -8/Materials | Lost 9 parts (1p3n2u3w) 2857 | -8/Materials | Build established: Scavenger-Mutant 3024 | -8/Materials | Released all parts (4) 3055 | -8/Materials | Lost 7 parts (1p3n2u1w) 3069 | -8/Materials | Core integrity fell below 50% 3086 | -8/Materials | Core integrity fell below 20% 3102 | -8/Materials | Destroyed by X-57 Shotgunner with High-powered Shotgun Last Messages --------------- 03064_ R-06 Scavenger inserts Sml. Matter Pod into recycling unit. 03067_ R-06 Scavenger inserts Com. Wheel into recycling unit. 03085_ S-10 Pest destroyed. 03085_ Slammed into S-10 Pest. 03091_ S-10 Pest destroyed. 03091_ Slammed into R-06 Scavenger. 03092_ K-01 Serf cleans the TF Node. 03095_ Neutrino Reactor detonated. 03095_ S-10 Pest destroyed. 03095_ Neutrino Reactor explodes. 03095_ Chain reaction triggered in Corrupted Lgt. Ion Engine. 03095_ Recycling Unit disabled. 03095_ Beam Rifle tumbles out of recycling unit. 03095_ Sml. Matter Pod tumbles out of recycling unit. 03100_ Acquired 3 matter. 03101_ R-06 Scavenger collects Flight Unit. Map ----- +----------------------------------------------------+ | ???# ##""" ## #????#[[ #??????# ### | | ???# ##""" ## #????#]] %%##########"### | | ???# ## ## #????#] !!! | | ??## ## !## #????#####% !] | | ??# ###+####### ########## % | | ??# ############## | | ??# #????????????## | | ??# #?????######### | | ??# ###+#######% ########## #?????# # | | ??####### #?# #????????# #?????# + | | ????????# #?# #????????# #?????# ! # | | ????????# !#?# #????###?# ############### | | ????????# #?# #??### ?# # ! ! + | | ????????# #?# #??# # # ######## | | ????????# #?# %#??# # # """ "#????# | | ????????# #?# #???# + """ T#????# | | ????????# #?# #???#### # # """ "#????# | | ????????# #?# #????????# # #????# | | ????????# #?# #???????## ########????# | | ????????# #?# ######### #??????????# | | ????????#########?# ## #??????????# | | ?????????????????## ## H #??????????# | | ?????????????????# # u #??????????# | | ?????????????????# k u#### #??????????### | | ?????????????????# " u##########????????????? | | ?????????????????# @ # #????????????? | | ?????????????????# # u # [ " #????????????? | | ?????????????????####### # " #????????????? | | ????????????????######## [ " #????????????? | | ????????? #????????????? | | ???????????????######### xx #????????????? | | ???????????????????????# # #????????????? | | ???????????????????????# % # ]#????????????? | | ???????????????????????# # ! #????????????? | | ???????????????????????# ##########????????????? | | ???????????????????????# #########?????????????? | | ???????????????????????# # """ ""?????????????? | | ???????????????????????# # """""""""???????????? | | ???????????????????????# r%# """"" #?????????? | | ???????????????????????# # #?????????? | | ???????????????????????# + #?????????? | | ???????????????????????# # ! #?????????? | | ???????????????????????# # = #?????????? | | ??????????????????????## #############?????????? | | ??????????????????????# #????????????????????? | | ??????????????????????# #????????????????????? | | ??????????????????????# #????????????????????? | | ??????????????????????# #????????????????????? | | ??????????????????????# #????????????????????? | | ?????????????????????####+###????????????????????? | +----------------------------------------------------+ Best States ------------- Heat Dissipation 41 Energy Generation 14 Energy Capacity 265 Matter Stores 300 Matter Capacity 300 Sight Range 16 Robot Scan Range 15 Terrain Scan Density 10 Armor Coverage 600 Propulsion Shielding 66 Evasion (%) 50 Recoil Reduction 2 Item Schematics ----------------- None Robot Schematics ------------------ None Fabricated ------------ Nothing Repaired ---------- Nothing Alien Tech Used ----------------- None Achievements -------------- None Challenges ------------ None Game ------ Seed FlyingMicroBallwheel Manual? 0 Play Time 01:29:07 Cumulative 103.2 hours Start 2025.09.20 @ 20:49:25 End 2025.09.20 @ 22:47:16 Sessions 5 Manual Loads 0 Difficulty Rogue Special Mode None Game No. 115 Rogue 115 Adventurer 0 Explorer 0 Win Type - Total 0 Types 0/0/0/0/0/0/0/0/0/0 Lore% 14 Gallery% 23 Achievement% 23 Wizard Run 0 Options --------- Layout 2 ASCII 0 Keyboard 0 Movement Numpad Keybinds 0 Fullscreen 1 Font 24/Smallcaps Map View 50x44 Zoom Use 0% Tactical HUD 1 Map Filters NONE Filters NONE Steam 1 RUN: 5f3e64f8-f7b2-46d0-85c5-aef911af3d09